fUSD/lending_fUSD_20250119
["ID","MTS","AMOUNT","RATE_DAILY","PERIOD"]
[349548804,1737291062793,-565.2,0.00019726,2]
[349548805,1737291062803,-500.0,0.00019726,2]
[349548806,1737291062813,-523.96,0.00019726,2]
[349548807,1737291062822,-547.49822178,0.00019726,2]
[349548808,1737291062832,-500.0,0.00019726,2]
[349548809,1737291062841,-500.0,0.00019726,2]
[349548810,1737291062850,-500.0,0.00019726,2]
[349548811,1737291062860,-500.0,0.00019726,2]
[349548812,1737291062869,-500.0,0.00019726,2]
[349548813,1737291062891,-500.0,0.00019726,2]
[349548814,1737291062911,-500.0,0.00019726,2]
[349548815,1737291062925,-500.0,0.00019726,2]
[349548816,1737291062941,-442.35977595,0.00019726,2]
[349548817,1737291062957,-500.0,0.00019726,2]
[349548818,1737291062975,-500.0,0.00019726,2]
[349548819,1737291062989,-500.0,0.00019726,2]
[349548820,1737291063003,-500.0,0.00019726,2]
[349548821,1737291063019,-872.01,0.00019726,2]
[349548822,1737291063034,-559.57,0.00019726,2]
[349548823,1737291063051,-300.0,0.00019726,2]
[349548824,1737291063069,-500.0,0.00019726,2]
[349548825,1737291063085,-500.0,0.00019726,2]
[349548826,1737291063102,-500.0,0.00019726,2]
[349548827,1737291063117,-500.0,0.00019726,2]
[349548828,1737291063136,-500.0,0.00019726,2]
[349548829,1737291063150,-500.0,0.00019726,2]
[349548830,1737291063163,-500.0,0.00019726,2]
[349548831,1737291063178,-757.05,0.00019726,2]
[349548832,1737291063196,-500.0,0.00019726,2]
[349548833,1737291063208,-500.0,0.00019726,2]
[349548834,1737291063222,-514.07,0.00019726,2]
[349548835,1737291063238,-518.1,0.00019726,2]
[349548836,1737291063250,-500.0,0.00019726,2]
[349548837,1737291063265,-628.39995375,0.00019726,2]
[349548838,1737291063278,-382.30795998,0.00019726,2]
[349548839,1737291063292,-500.0,0.00019726,2]
[349548840,1737291063321,-516.13,0.00019726,2]
[349548841,1737291063336,-575.58,0.00019726,2]
[349548842,1737291063350,-500.0,0.00019726,2]
[349548843,1737291063365,-500.0,0.00019726,2]
[349548844,1737291063380,-500.0,0.00019726,2]
[349548845,1737291063394,-500.0,0.00019726,2]
[349548846,1737291063408,-500.0,0.00019726,2]
[349548847,1737291063422,-500.0,0.00019726,2]
[349548848,1737291063436,-500.0,0.00019726,2]
[349548849,1737291063450,-449.09230435,0.00019726,2]
[349548850,1737291063464,-500.0,0.00019726,2]
[349548851,1737291063478,-500.0,0.00019726,2]
[349548852,1737291063492,-500.0,0.00019726,2]
[349548853,1737291063506,-500.0,0.00019726,2]
[349548854,1737291063520,-787.12,0.00019726,2]
[349548855,1737291063533,-500.0,0.00019726,2]
[349548856,1737291063547,-633.36,0.00019726,2]
[349548857,1737291063560,-500.0,0.00019726,2]
[349548858,1737291063574,-500.0,0.00019726,2]
[349548859,1737291063588,-500.0,0.00019726,2]
[349548860,1737291063601,-500.0,0.00019726,2]
[349548861,1737291063615,-500.0,0.00019726,2]
[349548862,1737291063631,-500.0,0.00019726,2]
[349548863,1737291063646,-500.0,0.00019726,2]
[349548864,1737291063661,-503.58,0.00019726,2]
[349548865,1737291063675,-263.4704815,0.00019726,2]
[349548866,1737291063690,-500.0,0.00019726,2]
[349548867,1737291063704,-500.0,0.00019726,2]
[349548868,1737291063718,-500.0,0.00019726,2]
[349548869,1737291063732,-500.0,0.00019726,2]
[349548870,1737291063746,-500.0,0.00019726,2]
[349548871,1737291063760,-500.0,0.00019726,2]
[349548872,1737291063773,-500.0,0.00019726,2]
[349548873,1737291063787,-500.0,0.00019726,2]
[349548874,1737291063801,-503.53,0.00019726,2]
[349548875,1737291063814,-500.0,0.00019726,2]
[349548876,1737291063828,-500.0,0.00019726,2]
[349548877,1737291063841,-500.0,0.00019726,2]
[349548878,1737291063856,-500.0,0.00019726,2]
[349548879,1737291063875,-500.0,0.00019726,2]
[349548880,1737291063889,-500.0,0.00019726,2]
[349548881,1737291063903,-500.0,0.00019726,2]
[349548882,1737291063917,-343.16131165,0.00019726,2]
[349548883,1737291063933,-500.0,0.00019726,2]
[349548884,1737291063947,-688.23,0.00019726,2]
[349548885,1737291063962,-500.0,0.00019726,2]
[349548886,1737291063975,-500.0,0.00019726,2]
[349548887,1737291063989,-500.0,0.00019726,2]
[349548888,1737291064004,-500.0,0.00019726,2]
[349548889,1737291064017,-500.0,0.00019726,2]
[349548890,1737291064030,-500.0,0.00019726,2]
[349548891,1737291064043,-500.0,0.00019726,2]
[349548892,1737291064057,-500.0,0.00019726,2]
[349548893,1737291064071,-500.0,0.00019726,2]
[349548894,1737291064084,-500.0,0.00019726,2]
[349548895,1737291064098,-500.0,0.00019726,2]
[349548896,1737291064111,-145.99165593,0.00019726,2]
[349548897,1737291064960,-354.00834407,0.00019726,2]
[349548898,1737291064977,-500.0,0.00019726,2]
[349548899,1737291064986,-599.87,0.00019726,2]
[349548900,1737291064996,-500.0,0.00019726,2]
[349548901,1737291065006,-500.0,0.00019726,2]
[349548902,1737291065015,-500.0,0.00019726,2]
[349548903,1737291065025,-500.0,0.00019726,2]
[349548904,1737291065035,-500.0,0.00019726,2]
[349548905,1737291065045,-500.0,0.00019726,2]
[349548906,1737291065056,-500.0,0.00019726,2]
[349548907,1737291065067,-500.0,0.00019726,2]
[349548908,1737291065078,-500.0,0.00019726,2]
[349548909,1737291065090,-500.0,0.00019726,2]
[349548910,1737291065100,-370.34109251,0.00019726,2]
[349548911,1737291065157,-150.0,0.00017826,2]
[349548912,1737291065168,-150.0,0.00018198,2]
[349548913,1737291065178,-150.0,0.00018654,2]
[349548914,1737291065188,-154.480029,0.00019252,2]
[349548915,1737291065198,-150.0,0.00019384,2]
[349548916,1737291065208,-426.24890749,0.00019726,2]
[349548917,1737291065218,-500.0,0.00019726,2]
[349548918,1737291065227,-500.0,0.00019726,2]
[349548919,1737291065237,-579.00892896,0.00019726,2]
[349548920,1737291065250,-672.51107104,0.00019726,2]
[349548921,1737291065259,-500.0,0.00019726,2]
[349548922,1737291065270,-500.0,0.00019726,2]
[349548923,1737291065281,-500.0,0.00019726,2]
[349548924,1737291065290,-500.0,0.00019726,2]
[349548925,1737291065301,-500.0,0.00019726,2]
[349548926,1737291065312,-984.45,0.00019726,2]
[349548927,1737291065323,-500.0,0.00019726,2]
[349548928,1737291065334,-500.0,0.00019726,2]
[349548929,1737291065348,-500.0,0.00019726,2]
[349548930,1737291065358,-906.03,0.00019726,2]
[349548931,1737291065372,-1081.64,0.00019726,2]
[349548932,1737291065391,-500.0,0.00019726,2]
[349548933,1737291065401,-500.0,0.00019726,2]
[349548934,1737291065413,-500.0,0.00019726,2]
[349548935,1737291065424,-1866.36882776,0.00019726,2]
[349548936,1737291065436,-298.74117224,0.00019726,2]
[349548937,1737291065449,-535.2,0.00019726,2]
[349548938,1737291065459,-25.15382776,0.00019726,2]
[349548939,1737291065495,-474.84617224,0.00019726,2]
[349548940,1737291065507,-517.04420891,0.00019726,2]
[349548941,1737291065518,-174.01836395,0.00019726,2]
[349548942,1737291065894,-500.0,0.00019178,2]
[349548943,1737291065903,-500.0,0.00019178,2]
[349548944,1737291065913,-500.0,0.00019178,2]
[349548945,1737291065923,-500.0,0.00019452,2]
[349548946,1737291065933,-500.0,0.00019452,2]
[349548947,1737291065943,-500.0,0.00019452,2]
[349548948,1737291065953,-325.98163605,0.00019726,2]
[349548949,1737291065962,-500.0,0.00019726,2]
[349548950,1737291065971,-5693.26,0.00019726,2]
[349548951,1737291065982,-492.85898689,0.00019726,2]
[349548952,1737291065992,-500.0,0.00019726,2]
[349548953,1737291066001,-500.0,0.00019726,2]
[349548954,1737291066011,-1471.98,0.00019726,2]
[349548955,1737291066021,-173.81813324,0.00019726,2]
[349548956,1737291066031,-500.0,0.00019726,2]
[349548957,1737291066041,-797.55,0.00019726,2]
[349548958,1737291066050,-232.69361128,0.00019726,2]
[349548959,1737291066069,-267.30638872,0.00019726,2]
[349548960,1737291066078,-365.37980827,0.00019726,2]
[349548961,1737291066091,-134.62019173,0.00019726,2]
[349548962,1737291066099,-228.58774546,0.00019726,2]
[349548963,1737291066109,-585.21,0.00019726,2]
[349548964,1737291066118,-1149.44618483,0.00019726,2]
[349548965,1737291066149,-500.0,0.00019178,2]
[349548966,1737291066159,-137.97000003,0.00019726,2]
[349548967,1737291066170,-281.58509351,0.00019726,2]
[349548968,1737291066961,-500.0,0.00019178,2]
[349548969,1737291066971,-500.0,0.00019178,2]
[349548970,1737291066981,-500.0,0.00019452,2]
[349548971,1737291066991,-500.0,0.00019452,2]
[349548972,1737291067001,-330.83872163,0.00019726,2]
[349548973,1737291067010,-500.0,0.00019726,2]
[349548974,1737291067019,-500.0,0.00019726,2]
[349548975,1737291067029,-817.78,0.00019726,2]
[349548976,1737291067039,-500.0,0.00019726,2]
[349548977,1737291067052,-500.0,0.00019726,2]
[349548978,1737291067061,-518.03,0.00019726,2]
[349548979,1737291067071,-500.0,0.00019726,2]
[349548980,1737291067081,-528.35586291,0.00019726,2]
[349548981,1737291067090,-83.22875243,0.00019726,2]
[349548982,1737291067102,-416.77124757,0.00019726,2]
[349548983,1737291067112,-918.07,0.00019726,2]
[349548984,1737291067121,-500.0,0.00019726,2]
[349548985,1737291067133,-446.83575832,0.00019726,2]
[349548986,1737291067146,-53.16424168,0.00019726,2]
[349548987,1737291067155,-500.0,0.00019726,2]
[349548988,1737291067165,-1107.16,0.00019726,2]
[349548989,1737291067175,-500.0,0.00019726,2]
[349548990,1737291067185,-500.0,0.00019726,2]
[349548991,1737291067194,-1653.66,0.00019726,2]
[349548992,1737291067204,-915.91,0.00019726,2]
[349548993,1737291067214,-4.10575832,0.00019726,2]
[349548994,1737291067447,-500.0,0.00019178,2]
[349548995,1737291067475,-500.0,0.00019178,2]
[349548996,1737291067484,-347.93541,0.00019178,2]
[349548997,1737291067494,-347.93541,0.00019178,2]
[349548998,1737291067503,-347.93541,0.00019178,2]
[349548999,1737291067512,-178.41376934,0.00019452,2]
[349549000,1737291067524,-237.4156826,0.00019452,2]
[349549001,1737291067533,-500.0,0.00019452,2]
[349549002,1737291067542,-61.49897746,0.00019726,2]
[349549003,1737291091476,183.6193865,0.00022,120]
[349549007,1737291945711,264.38,0.00010137,2]
[349549009,1737292152247,-748.22,0.00016433,2]
[349549010,1737292152268,-236.6506,0.00016813,2]
[349549050,1737292232199,-27.7294,0.00016813,2]
[349549051,1737292232209,-482.74284648,0.00017317,2]
[349549052,1737292232219,-201.42,0.00018321,2]
[349549053,1737292232229,-250.0,0.00018341,2]
[349549054,1737292232238,-200.0,0.00018341,2]
[349549055,1737292232248,-1000.0,0.00018449,2]
[349549056,1737292232257,-260.56,0.0001847,2]
[349549057,1737292232267,-583.61,0.00018492,2]
[349549058,1737292232277,-250.0,0.00018498,2]
[349549059,1737292232287,-500.0,0.0001863,2]
[349549060,1737292232297,-748.22,0.00018697,2]
[349549061,1737292232306,-772.56,0.000187,2]
[349549062,1737292232315,-438.33,0.000187,2]
[349549063,1737292232325,-150.0,0.000187,2]
[349549064,1737292232334,-438.33,0.000187,2]
[349549065,1737292232344,-175.95,0.000187,2]
[349549066,1737292232353,-438.33,0.000187,2]
[349549067,1737292232362,-438.33,0.000187,2]
[349549068,1737292232372,-15179.85717156,0.00019,2]
[349549069,1737292232382,-438.33,0.00019,2]
[349549070,1737292232391,-614.67441042,0.00019078,2]
[349549071,1737292232400,-608.4299,0.00019078,2]
[349549072,1737292232410,-580.734,0.00019172,2]
[349549073,1737292232420,-358.28639095,0.00019173,2]
[349549074,1737292232429,-583.61,0.00019177,2]
[349549075,1737292232439,-506.44548271,0.00019178,2]
[349549076,1737292232448,-505.98316794,0.00019178,2]
[349549077,1737292232458,-500.0,0.00019178,2]
[349549078,1737292232467,-500.0,0.00019178,2]
[349549079,1737292232477,-234.27918754,0.00019178,2]
[349549080,1737292232487,-500.0,0.00019178,2]
[349549081,1737292232496,-500.0,0.00019178,2]
[349549082,1737292232506,-500.0,0.00019178,2]
[349549083,1737292232515,-500.33051619,0.00019178,2]
[349549084,1737292232525,-500.0,0.00019178,2]
[349549085,1737292232535,-233.99515801,0.00019178,2]
[349549086,1737292232545,-647.74540282,0.00019178,2]
[349549087,1737292232554,-500.0,0.00019178,2]
[349549088,1737292232576,-631.89303756,0.00019178,2]
[349549089,1737292232586,-500.0,0.00019178,2]
[349549090,1737292232595,-500.0,0.00019178,2]
[349549091,1737292232605,-1018.517419,0.00019178,2]
[349549092,1737292232614,-500.0,0.00019178,2]
[349549093,1737292232623,-500.0,0.00019178,2]
[349549094,1737292232633,-508.73287734,0.00019178,2]
[349549095,1737292232642,-500.0,0.00019178,2]
[349549096,1737292232653,-500.0,0.00019178,2]
[349549097,1737292232662,-543.102051,0.00019178,2]
[349549098,1737292232672,-500.0,0.00019178,2]
[349549099,1737292232681,-500.0,0.00019178,2]
[349549100,1737292232691,-860.13,0.00019178,2]
[349549101,1737292232700,-159.534965,0.00019178,2]
[349549102,1737292232710,-500.0,0.00019178,2]
[349549103,1737292232721,-514.70505436,0.00019178,2]
[349549104,1737292232730,-519.36509502,0.00019178,2]
[349549105,1737292232739,-500.0,0.00019178,2]
[349549106,1737292232748,-500.0,0.00019178,2]
[349549107,1737292232758,-500.0,0.00019178,2]
[349549108,1737292232767,-365.71602347,0.00019178,2]
[349549109,1737292232778,-500.0,0.00019178,2]
[349549110,1737292232788,-500.0,0.00019178,2]
[349549111,1737292232800,-500.0,0.00019178,2]
[349549112,1737292232810,-500.0,0.00019178,2]
[349549113,1737292232819,-500.0,0.00019178,2]
[349549114,1737292232828,-500.0,0.00019178,2]
[349549115,1737292232838,-500.0,0.00019178,2]
[349549116,1737292232847,-263.078232,0.00019178,2]
[349549117,1737292232857,-500.0,0.00019178,2]
[349549118,1737292232866,-500.0,0.00019178,2]
[349549119,1737292232875,-166.403411,0.00019178,2]
[349549120,1737292232885,-162.043691,0.00019178,2]
[349549121,1737292232894,-500.0,0.00019178,2]
[349549122,1737292232903,-622.52477991,0.00019178,2]
[349549123,1737292232912,-500.0,0.00019178,2]
[349549124,1737292232922,-169.77240835,0.00019178,2]
[349549125,1737292232931,-525.55892799,0.00019178,2]
[349549126,1737292232941,-489.09526748,0.00019178,2]
[349549127,1737292232950,-309.24113283,0.00019178,2]
[349549128,1737292232960,-538.67948033,0.00019178,2]
[349549129,1737292232969,-500.0,0.00019178,2]
[349549130,1737292232979,-500.0,0.00019178,2]
[349549131,1737292232988,-500.0,0.00019178,2]
[349549132,1737292232997,-500.0,0.00019178,2]
[349549133,1737292233006,-500.0,0.00019178,2]
[349549134,1737292233015,-530.85,0.00019178,2]
[349549135,1737292233025,-500.0,0.00019178,2]
[349549136,1737292233035,-500.0,0.00019178,2]
[349549137,1737292233046,-159.90320582,0.00019178,2]
[349549138,1737292233056,-1210.81,0.00019178,2]
[349549139,1737292233064,-500.0,0.00019178,2]
[349549140,1737292233074,-500.0,0.00019178,2]
[349549141,1737292233083,-500.0,0.00019178,2]
[349549142,1737292233093,-500.0,0.00019178,2]
[349549143,1737292233102,-500.0,0.00019178,2]
[349549144,1737292233112,-500.0,0.00019178,2]
[349549145,1737292233121,-500.0,0.00019178,2]
[349549146,1737292233132,-500.0,0.00019178,2]
[349549147,1737292233152,-500.0,0.00019178,2]
[349549148,1737292233161,-500.0,0.00019178,2]
[349549149,1737292233172,-500.0,0.00019178,2]
[349549150,1737292233182,-500.0,0.00019178,2]
[349549151,1737292233192,-224.74658497,0.00019178,2]
[349549152,1737292233202,-500.0,0.00019178,2]
[349549153,1737292233212,-500.0,0.00019178,2]
[349549154,1737292233221,-557.27,0.00019178,2]
[349549155,1737292233232,-500.0,0.00019178,2]
[349549156,1737292233241,-500.0,0.00019178,2]
[349549157,1737292233251,-573.33202155,0.00019178,2]
[349549158,1737292233260,-709.04,0.00019178,2]
[349549159,1737292233270,-500.0,0.00019178,2]
[349549160,1737292233279,-500.0,0.00019178,2]
[349549161,1737292233288,-662.42,0.00019178,2]
[349549162,1737292233301,-500.0,0.00019178,2]
[349549163,1737292233310,-500.0,0.00019178,2]
[349549164,1737292233319,-500.0,0.00019178,2]
[349549165,1737292233328,-502.45902709,0.00019178,2]
[349549166,1737292233338,-632.54,0.00019178,2]
[349549167,1737292233347,-571.93,0.00019178,2]
[349549168,1737292233356,-500.0,0.00019178,2]
[349549169,1737292233365,-500.0,0.00019178,2]
[349549170,1737292233374,-500.0,0.00019178,2]
[349549171,1737292233383,-500.0,0.00019178,2]
[349549172,1737292233393,-500.0,0.00019178,2]
[349549173,1737292233402,-500.0,0.00019178,2]
[349549174,1737292233411,-500.0,0.00019178,2]
[349549175,1737292233420,-265.88374902,0.00019178,2]
[349549176,1737292233429,-500.58910128,0.00019178,2]
[349549177,1737292233439,-500.0,0.00019178,2]
[349549178,1737292233448,-500.0,0.00019178,2]
[349549179,1737292233457,-346.70983161,0.00019178,2]
[349549180,1737292233466,-500.0,0.00019178,2]
[349549181,1737292233475,-500.0,0.00019178,2]
[349549182,1737292233484,-500.0,0.00019178,2]
[349549183,1737292233494,-500.0,0.00019178,2]
[349549184,1737292233503,-500.0,0.00019178,2]
[349549185,1737292233513,-500.0,0.00019178,2]
[349549186,1737292233522,-500.0,0.00019178,2]
[349549187,1737292233531,-500.0,0.00019178,2]
[349549188,1737292233540,-500.0,0.00019178,2]
[349549189,1737292233553,-510.96571648,0.00019178,2]
[349549190,1737292233563,-271.6110536,0.00019178,2]
[349549191,1737292233572,-500.0,0.00019178,2]
[349549192,1737292233582,-500.0,0.00019178,2]
[349549193,1737292233591,-500.0,0.00019178,2]
[349549194,1737292233601,-500.0,0.00019178,2]
[349549195,1737292233610,-263.4704815,0.00019178,2]
[349549196,1737292233620,-424.87142593,0.00019178,2]
[349549197,1737292233630,-500.0,0.00019178,2]
[349549198,1737292233639,-500.0,0.00019178,2]
[349549199,1737292233649,-500.0,0.00019178,2]
[349549200,1737292233658,-502.01884778,0.00019178,2]
[349549201,1737292233667,-500.0,0.00019178,2]
[349549202,1737292233677,-500.0,0.00019178,2]
[349549203,1737292233686,-500.0,0.00019178,2]
[349549204,1737292233695,-500.0,0.00019178,2]
[349549205,1737292233704,-500.0,0.00019178,2]
[349549206,1737292233715,-500.0,0.00019178,2]
[349549207,1737292233728,-500.0,0.00019178,2]
[349549208,1737292233738,-500.0,0.00019178,2]
[349549209,1737292233748,-580.58,0.00019178,2]
[349549210,1737292233759,-500.0,0.00019178,2]
[349549211,1737292233777,-500.0,0.00019178,2]
[349549212,1737292233791,-500.0,0.00019178,2]
[349549213,1737292233803,-500.0,0.00019178,2]
[349549214,1737292233814,-500.0,0.00019178,2]
[349549215,1737292233824,-500.0,0.00019178,2]
[349549216,1737292233833,-500.46465182,0.00019178,2]
[349549217,1737292233844,-343.16131165,0.00019178,2]
[349549218,1737292233853,-500.0,0.00019178,2]
[349549219,1737292233863,-500.0,0.00019178,2]
[349549220,1737292233873,-500.0,0.00019178,2]
[349549221,1737292233882,-500.0,0.00019178,2]
[349549222,1737292233892,-500.0,0.00019178,2]
[349549223,1737292233902,-500.0,0.00019178,2]
[349549224,1737292233911,-500.0,0.00019178,2]
[349549225,1737292233921,-500.0,0.00019178,2]
[349549226,1737292233931,-500.0,0.00019178,2]
[349549227,1737292233941,-519.1126247,0.00019178,2]
[349549228,1737292233951,-270.6864256,0.00019178,2]
[349549229,1737292233960,-500.0,0.00019178,2]
[349549230,1737292233971,-500.0,0.00019178,2]
[349549231,1737292233982,-500.0,0.00019178,2]
[349549232,1737292233992,-500.0,0.00019178,2]
[349549233,1737292234002,-500.0,0.00019178,2]
[349549234,1737292234011,-500.0,0.00019178,2]
[349549235,1737292234021,-500.0,0.00019178,2]
[349549236,1737292234030,-500.0,0.00019178,2]
[349549237,1737292234040,-500.0,0.00019178,2]
[349549238,1737292234050,-500.0,0.00019178,2]
[349549239,1737292234060,-500.0,0.00019178,2]
[349549240,1737292234070,-500.0,0.00019178,2]
[349549241,1737292234079,-500.0,0.00019178,2]
[349549242,1737292234089,-500.0,0.00019178,2]
[349549243,1737292234099,-500.0,0.00019178,2]
[349549244,1737292234109,-500.0,0.00019178,2]
[349549245,1737292234118,-500.0,0.00019178,2]
[349549246,1737292234128,-500.0,0.00019178,2]
[349549247,1737292234137,-500.0,0.00019178,2]
[349549248,1737292234147,-934.69,0.00019178,2]
[349549249,1737292234156,-500.0,0.00019178,2]
[349549250,1737292234165,-649.72,0.00019178,2]
[349549251,1737292234175,-500.0,0.00019178,2]
[349549252,1737292234184,-500.0,0.00019178,2]
[349549253,1737292234194,-194.9403564,0.00019178,2]
[349549254,1737292234203,-500.0,0.00019178,2]
[349549255,1737292234212,-598.68,0.00019178,2]
[349549256,1737292234222,-500.0,0.00019178,2]
[349549257,1737292234231,-500.0,0.00019178,2]
[349549258,1737292234241,-500.0,0.00019178,2]
[349549259,1737292234251,-500.0,0.00019178,2]
[349549260,1737292234260,-500.0,0.00019178,2]
[349549261,1737292234270,-500.0,0.00019178,2]
[349549262,1737292234279,-500.0,0.00019178,2]
[349549263,1737292234289,-611.02,0.00019178,2]
[349549264,1737292234301,-500.0,0.00019178,2]
[349549265,1737292234311,-500.0,0.00019178,2]
[349549266,1737292234321,-500.0,0.00019178,2]
[349549267,1737292234331,-697.01,0.00019178,2]
[349549268,1737292234340,-500.0,0.00019178,2]
[349549269,1737292234350,-500.0,0.00019178,2]
[349549270,1737292234359,-607.89674839,0.00019178,2]
[349549271,1737292234369,-350.14735123,0.00019178,2]
[349549272,1737292234379,-500.0,0.00019178,2]
[349549273,1737292234389,-500.0,0.00019178,2]
[349549274,1737292234398,-500.0,0.00019178,2]
[349549275,1737292234407,-500.0,0.00019178,2]
[349549276,1737292234417,-500.0,0.00019178,2]
[349549277,1737292234426,-500.0,0.00019178,2]
[349549278,1737292234435,-500.0,0.00019178,2]
[349549279,1737292234445,-500.0,0.00019178,2]
[349549280,1737292234454,-500.0,0.00019178,2]
[349549281,1737292234463,-500.0,0.00019178,2]
[349549282,1737292234473,-500.0,0.00019178,2]
[349549283,1737292234482,-535.62,0.00019178,2]
[349549284,1737292234491,-500.0,0.00019178,2]
[349549285,1737292234501,-500.0,0.00019178,2]
[349549286,1737292234510,-500.0,0.00019178,2]
[349549287,1737292234520,-506.19796777,0.00019178,2]
[349549288,1737292234530,-500.0,0.00019178,2]
[349549289,1737292234540,-500.0,0.00019178,2]
[349549290,1737292234559,-500.0,0.00019178,2]
[349549291,1737292234568,-500.0,0.00019178,2]
[349549292,1737292234583,-500.0,0.00019178,2]
[349549293,1737292234592,-500.0,0.00019178,2]
[349549294,1737292234602,-511.412713,0.00019178,2]
[349549295,1737292234610,-500.0,0.00019178,2]
[349549296,1737292234620,-500.0,0.00019178,2]
[349549297,1737292234629,-500.0,0.00019178,2]
[349549298,1737292234638,-500.0,0.00019178,2]
[349549299,1737292234646,-500.0,0.00019178,2]
[349549300,1737292234655,-527.90947784,0.00019178,2]
[349549301,1737292234664,-500.0,0.00019178,2]
[349549302,1737292234673,-500.0,0.00019178,2]
[349549303,1737292234682,-500.0,0.00019178,2]
[349549304,1737292234691,-500.0,0.00019178,2]
[349549305,1737292234701,-500.0,0.00019178,2]
[349549306,1737292234709,-500.0,0.00019178,2]
[349549307,1737292234721,-500.0,0.00019178,2]
[349549308,1737292234731,-500.0,0.00019178,2]
[349549309,1737292234740,-500.0,0.00019178,2]
[349549310,1737292234749,-500.0,0.00019178,2]
[349549311,1737292234758,-500.0,0.00019178,2]
[349549312,1737292234768,-543.89326692,0.00019178,2]
[349549313,1737292234777,-500.0,0.00019178,2]
[349549314,1737292234786,-500.0,0.00019178,2]
[349549315,1737292234797,-637.24090478,0.00019178,2]
[349549316,1737292234807,-616.54564475,0.00019178,2]
[349549317,1737292234816,-500.0,0.00019178,2]
[349549318,1737292234826,-500.0,0.00019178,2]
[349549319,1737292234836,-500.0,0.00019178,2]
[349549320,1737292234845,-500.0,0.00019178,2]
[349549321,1737292234855,-500.0,0.00019178,2]
[349549322,1737292234864,-500.0,0.00019178,2]
[349549323,1737292234873,-500.0,0.00019178,2]
[349549324,1737292234883,-500.0,0.00019178,2]
[349549325,1737292234892,-500.0,0.00019178,2]
[349549326,1737292234900,-500.0,0.00019178,2]
[349549327,1737292234910,-500.0,0.00019178,2]
[349549328,1737292234919,-500.0,0.00019178,2]
[349549329,1737292234928,-500.0,0.00019178,2]
[349549330,1737292234937,-500.0,0.00019178,2]
[349549331,1737292234946,-500.0,0.00019178,2]
[349549332,1737292234955,-433.43810752,0.00019178,2]
[349549333,1737292234964,-780.34,0.00019178,2]
[349549334,1737292234973,-500.0,0.00019178,2]
[349549335,1737292234984,-500.0,0.00019178,2]
[349549336,1737292234994,-512.06,0.00019178,2]
[349549337,1737292235003,-500.0,0.00019178,2]
[349549338,1737292235013,-500.0,0.00019178,2]
[349549339,1737292235022,-500.0,0.00019178,2]
[349549340,1737292235031,-500.62233214,0.00019178,2]
[349549341,1737292235040,-500.0,0.00019178,2]
[349549342,1737292235050,-500.0,0.00019178,2]
[349549343,1737292235059,-500.0,0.00019178,2]
[349549344,1737292235069,-500.0,0.00019178,2]
[349549345,1737292235078,-500.0,0.00019178,2]
[349549346,1737292235087,-520.43,0.00019178,2]